bitfinex-derivatives/quotes_ETHF0:USTF0_20240923
["timestamp","ask_amount","ask_price","bid_price","bid_amount"]
[1727062161982,3.2078,2684.8,2684.5,0.37251]
[1727062163076,3.2078,2684.8,2684.4,0.37252]
[1727062163273,3.2078,2684.8,2684.3,8.16770086]
[1727062163473,3.2078,2684.8,2684.4,0.37253]
[1727062164273,3.2078,2684.8,2684.5,0.37251]
[1727062164466,3.2078,2684.8,2684.3,9.82516086]
[1727062164680,3.2078,2684.8,2684.4,0.37253]
[1727062164883,3.2078,2684.8,2684.3,7.79516086]
[1727062165177,4.15408688,2684.8,2684.3,7.79516086]
[1727062165385,0.94628688,2684.6,2684.3,7.79516086]
[1727062165774,3.2078,2684.5,2684.3,7.79516086]
[1727062166179,3.2078,2684.5,2684.3,8.16770086]
[1727062167070,3.2078,2684.5,2684.3,7.79516086]
[1727062167275,3.2078,2684.5,2684.3,8.16770086]
[1727062167684,3.2078,2684.5,2684.3,7.79516086]
[1727062168372,0.94628688,2684.6,2684.3,7.79516086]
[1727062169486,0.94628688,2684.6,2684.4,0.37252]
[1727062169678,0.94628688,2684.6,2684.3,7.79516086]
[1727062169881,0.94628688,2684.5,2684.3,7.79516086]
[1727062170081,3.2078,2684.4,2684.3,7.79516086]
[1727062171786,4.15408688,2684.4,2684.2,1.2652]
[1727062172488,0.94628688,2684.3,2684.2,1.2652]
[1727062172784,0.94628688,2684.4,2684.3,0.37254]
[1727062172976,0.94628688,2684.5,2684.3,2.03]
[1727062173177,0.94628688,2684.6,2684.4,0.37253]
[1727062175486,0.94628688,2684.5,2684.2,1.2652]
[1727062175789,0.97639181,2684.4,2684.2,1.63775]
[1727062175978,0.97639181,2684.4,2684.2,1.2652]
[1727062177281,4.18419181,2684.3,2683.9,3.3595]
[1727062177473,0.97639181,2684.2,2683.9,3.3595]
[1727062177676,0.97639181,2684.2,2684.0,8.00496403]
[1727062178106,8.15424703,2684.1,2683.4,2.33330624]
[1727062178384,8.15424703,2684.1,2682.9,0.37848987]
[1727062178385,3.2078,2683.5,2682.9,0.37848987]
[1727062178587,0.97579622,2683.2,2682.9,0.37848987]
[1727062178786,1.46369433,2683.4,2682.9,8.07056721]
[1727062178787,0.97579622,2683.3,2682.9,8.07056721]
[1727062178981,0.97579622,2683.0,2682.9,0.37848987]
[1727062179181,4.67149433,2683.2,2682.9,0.37848987]
[1727062179182,1.46369433,2683.1,2682.9,0.37848987]
[1727062179483,0.97478138,2683.1,2682.9,0.37848987]
[1727062179684,3.7272,2683.0,2682.9,0.37848987]
[1727062179984,1.46369433,2683.0,2682.9,0.37848987]
[1727062180291,4.18265871,2683.2,2682.9,0.37848987]
[1727062180588,0.97485871,2683.1,2682.9,0.37848987]
[1727062180992,3.7272,2683.0,2682.9,0.37848987]
[1727062181189,4.70205871,2683.0,2682.9,0.37848987]
[1727062181388,3.7272,2683.0,2682.9,0.37848987]
[1727062181895,9.7272,2683.0,2682.9,0.37848987]
[1727062182082,11.07477871,2683.0,2682.9,0.37848987]
[1727062182392,3.2078,2683.2,2682.9,6.13568987]
[1727062182585,3.2078,2683.5,2683.1,2.03]
[1727062183088,3.2078,2683.5,2683.0,1.4028]
[1727062183494,3.2078,2683.2,2683.0,1.4028]
[1727062184889,3.2078,2683.2,2682.9,2.03]
[1727062185185,3.2078,2683.2,2683.0,7.69473946]
[1727062186188,3.2078,2683.2,2682.7,2.03]
[1727062186592,3.2078,2683.2,2682.9,2.03]
[1727062187884,3.2078,2683.2,2682.7,2.03]
[1727062188298,3.2078,2683.2,2682.7,9.75503143]
[1727062188495,5.916551,2683.9,2683.0,2.03]
[1727062188496,2.6505,2683.9,2683.0,2.03]
[1727062188697,4.6138,2684.3,2683.7,2.03]
[1727062188888,4.6138,2684.3,2683.1,2.706]
[1727062188889,3.2078,2684.2,2683.5,2.03]
[1727062189083,3.2078,2683.9,2683.5,2.03]
[1727062189289,3.2078,2683.9,2683.6,7.87472534]
[1727062189592,3.2078,2683.9,2683.5,2.03]
[1727062189791,3.2078,2683.9,2683.1,2.706]
[1727062189792,3.2078,2683.9,2683.2,2.03]
[1727062190096,3.2078,2683.6,2683.2,7.73311339]
[1727062190301,3.2078,2683.3,2683.2,7.73311339]
[1727062190598,3.2078,2683.3,2683.1,2.706]
[1727062190896,3.2078,2683.3,2682.8,2.03]
[1727062191193,1.406,2683.7,2682.3,3.2078]
[1727062191194,3.2078,2683.0,2682.5,2.03]
[1727062191396,3.2078,2682.9,2682.4,2.654]
[1727062191698,3.2078,2682.9,2682.4,10.46834334]
[1727062191894,3.58051,2682.9,2682.4,2.654]
[1727062192088,4.5176,2682.9,2682.5,8.04119887]
[1727062192289,3.2078,2682.6,2682.5,8.04119887]
[1727062192593,3.2078,2682.6,2682.1,2.03]
[1727062192799,1.3098,2682.9,2682.1,2.03]
[1727062192800,3.58054,2682.7,2682.1,2.03]
[1727062192996,3.2078,2682.2,2682.0,1.3677]
[1727062193996,3.7288,2682.1,2681.2,3.2078]
[1727062194301,1.3587,2682.1,2681.4,9.09684545]
[1727062194491,3.2078,2682.2,2681.6,2.51]
[1727062194798,3.2078,2682.2,2681.9,2.51]
[1727062194990,3.2078,2682.2,2682.0,1.3801]
[1727062195187,3.2078,2682.2,2682.0,8.019191]
[1727062195392,3.2078,2682.2,2681.7,2.6649]
[1727062195599,3.58061,2682.2,2681.7,1.2897]
[1727062195798,4.5665,2682.2,2681.7,1.2897]
[1727062196096,3.2078,2682.2,2681.9,2.51]
[1727062196298,3.2078,2682.2,2681.8,8.019191]
[1727062196499,3.2078,2681.9,2681.7,1.2897]
[1727062196714,3.2078,2682.6,2681.9,7.88640093]
[1727062197200,3.2078,2682.6,2682.0,1.3801]
[1727062197402,3.2078,2682.6,2682.0,8.99802522]
[1727062197793,3.2078,2682.6,2682.0,1.3801]
[1727062198096,1.73144,2682.7,2681.7,1.2897]
[1727062198097,3.2078,2682.3,2681.7,1.2897]
[1727062198402,3.2078,2682.3,2681.9,8.03877732]
[1727062198701,3.2078,2682.3,2681.7,1.2897]
[1727062199001,3.58059,2682.3,2682.0,8.03877732]
[1727062199202,3.58059,2682.3,2682.0,2.00089732]
[1727062199203,0.37282,2682.1,2682.0,2.00089732]
[1727062199512,0.37282,2682.1,2680.9,3.58078]
[1727062199513,4.10082,2682.2,2681.4,1.3665]
[1727062199691,3.2078,2682.0,2681.4,1.3665]
[1727062200004,3.2078,2682.0,2681.5,8.02493448]
[1727062200993,3.2078,2682.0,2681.8,2.51]
[1727062201191,3.2078,2682.0,2681.9,2.7362]
[1727062201398,3.2078,2682.0,2681.9,10.42012517]
[1727062201600,3.2078,2682.0,2681.9,14.14892517]
[1727062201895,0.37272,2682.9,2681.9,14.13892517]
[1727062201896,3.2078,2682.3,2681.9,14.13892517]
[1727062202090,3.2078,2682.3,2681.9,10.41012517]
[1727062202900,3.2078,2682.6,2681.9,14.13892517]
[1727062203197,3.2078,2682.6,2682.1,2.51]
[1727062203504,3.2078,2683.1,2682.5,0.37276]
[1727062203796,3.2078,2683.1,2682.9,2.51]
[1727062204001,3.2078,2683.1,2683.0,1.338]
[1727062204204,3.2078,2683.1,2683.0,9.04044785]
[1727062204396,6.935,2683.1,2683.0,1.338]
[1727062205697,12.935,2683.1,2682.6,1.2706]
[1727062205900,12.935,2683.1,2681.5,3.5807]
[1727062205901,0.37277,2682.5,2681.5,3.5807]
[1727062206100,3.2078,2682.0,2681.6,2.5485]
[1727062206402,3.2078,2682.0,2681.6,10.15564998]
[1727062207305,3.2078,2682.0,2681.6,2.5485]
[1727062207598,3.2078,2681.7,2681.2,1.3183]
[1727062207804,3.2078,2681.7,2681.2,2.5962]
[1727062208096,3.2078,2681.7,2681.2,10.59792497]
[1727062208299,3.2078,2681.7,2681.2,10.22499497]
[1727062210906,3.58053,2682.8,2681.7,0.37286]
[1727062211207,0.8351,2683.0,2682.0,3.2078]
[1727062211208,1.3855,2682.9,2682.0,3.2078]
[1727062211497,1.3855,2682.9,2682.3,3.2078]
[1727062211801,0.37274,2682.7,2682.1,7.89207641]
[1727062211995,3.2078,2682.8,2682.0,11.09987641]
[1727062212195,0.37275,2682.7,2682.0,3.2078]
[1727062212396,0.37275,2682.7,2682.2,7.77822255]
[1727062212593,0.37275,2682.7,2682.1,7.77822255]
[1727062212800,0.37275,2682.7,2682.0,3.2078]
[1727062212801,0.37275,2682.6,2682.0,3.2078]
[1727062213000,0.37274,2682.7,2682.2,7.77822255]
[1727062213196,0.37276,2682.6,2682.2,7.77822255]
[1727062213401,1.3855,2682.9,2681.8,1.3993]
[1727062213600,4.5933,2682.9,2681.9,0.37285]
[1727062213804,0.37273,2682.8,2682.1,7.69523289]
[1727062213999,0.37273,2682.8,2682.0,5.8912]
[1727062214305,1.3855,2682.9,2682.4,0.37278]
[1727062214516,0.973121,2684.0,2682.8,3.2078]
[1727062214703,1.4052,2684.0,2683.4,3.2078]
[1727062215100,1.77777,2684.0,2683.5,1.3841]
[1727062215302,1.77776,2684.0,2683.5,1.3841]
[1727062215504,1.4052,2684.0,2683.5,1.3841]
[1727062215712,1.77776,2684.0,2683.3,3.2078]
[1727062215904,1.4052,2684.0,2683.3,3.2078]
[1727062216103,0.37259,2683.8,2683.4,7.90448863]
[1727062216305,1.4052,2684.0,2683.3,3.2078]
[1727062216505,1.4052,2684.0,2683.3,5.7178]
[1727062216704,1.4052,2684.0,2683.4,7.82241651]
[1727062218211,0.37252,2684.3,2683.4,7.82241651]
[1727062218514,3.483121,2684.8,2684.0,2.51]
[1727062218515,0.973121,2684.8,2684.0,2.51]
[1727062218708,1.73534,2684.9,2684.1,1.3977]
[1727062219013,1.3629,2684.9,2684.2,3.2078]
[1727062219406,1.3629,2684.9,2684.3,7.78614047]
[1727062219808,1.3629,2684.9,2684.5,3.2078]
[1727062220209,3.2078,2685.3,2684.5,3.2078]
[1727062220512,1.3629,2685.2,2684.5,3.2078]
[1727062220704,1.73529,2685.2,2684.5,3.2078]
[1727062221107,1.3629,2685.2,2684.1,4.6055]
[1727062221309,1.73529,2685.2,2684.1,4.6055]
[1727062221515,1.73529,2685.2,2684.2,7.92349078]
[1727062221712,1.3629,2685.2,2684.2,8.29602078]
[1727062221909,1.3629,2685.2,2684.4,3.2078]
[1727062222307,1.3629,2685.2,2684.8,3.2078]
[1727062223120,0.37233,2685.6,2684.8,4.5735]
[1727062223302,0.37236,2685.5,2684.8,4.5735]
[1727062223505,0.37235,2685.5,2684.8,4.5735]
[1727062224902,3.2078,2685.1,2684.2,3.2078]
[1727062225114,3.2078,2684.8,2684.2,3.2078]
[1727062225319,4.180921,2684.8,2684.2,3.2078]
[1727062225518,0.37249,2684.5,2684.2,3.2078]
[1727062225922,4.180921,2684.8,2684.2,3.2078]
[1727062226131,4.553371,2684.8,2684.2,3.2078]
[1727062226423,3.2078,2684.8,2684.2,3.2078]
[1727062226726,2.95472,2685.0,2684.2,3.58032]
[1727062227031,2.5823,2685.0,2684.3,0.37251]
[1727062227322,2.5823,2685.0,2684.5,3.2078]
[1727062227826,1.2761,2685.0,2684.5,3.2078]
[1727062228424,3.2078,2685.3,2684.5,3.2078]
[1727062229221,3.2078,2685.3,2684.3,1.2704]
[1727062229222,0.37239,2685.2,2684.3,1.2704]
[1727062229421,0.3724,2685.1,2684.3,1.2704]
[1727062229635,3.2078,2685.3,2684.3,1.2704]
[1727062229831,0.37242,2685.0,2684.3,1.2704]
[1727062230237,0.37241,2685.1,2684.3,1.2704]
[1727062230435,3.58018,2685.3,2684.3,1.2704]
[1727062230633,3.2078,2685.3,2684.3,1.2704]
[1727062230835,3.58018,2685.3,2684.3,1.2704]
[1727062231344,0.37239,2685.2,2684.3,1.2704]
[1727062231635,0.37241,2685.1,2684.3,1.2704]
[1727062231841,0.37242,2685.0,2684.3,1.2704]
[1727062232137,0.3724,2685.2,2684.3,1.2704]
[1727062232337,3.2078,2685.3,2684.5,3.2078]
[1727062232541,3.2078,2686.2,2685.2,2.51]
[1727062232734,1.2837,2686.1,2685.2,1.3481]
[1727062232935,3.2078,2685.9,2685.2,1.3481]
[1727062233136,0.37231,2685.8,2685.2,1.3481]
[1727062233530,3.5801,2685.9,2685.2,1.3481]
[1727062233733,3.2078,2685.9,2685.3,3.2078]
[1727062234043,3.5801,2685.9,2685.2,1.3481]
[1727062234235,3.5801,2685.9,2685.3,3.2078]
[1727062234435,0.37231,2685.8,2685.3,3.2078]
[1727062234936,4.09631,2685.8,2685.3,3.2078]
[1727062235132,3.2078,2685.9,2685.3,3.2078]
[1727062235532,3.2078,2685.9,2684.8,3.829]
[1727062235533,3.2078,2685.9,2685.2,0.37238]
[1727062235732,3.2078,2685.9,2684.9,3.2078]
[1727062235942,3.58009,2685.9,2684.9,11.2104979]
[1727062236143,0.37231,2685.8,2684.9,11.2104979]
[1727062236542,3.2078,2685.9,2684.9,11.2104979]
[1727062236937,3.2078,2685.3,2684.3,3.2078]
[1727062237149,3.2078,2684.4,2683.7,1.2902]
[1727062237638,3.2078,2684.4,2683.9,3.2078]
[1727062237950,3.2078,2684.4,2683.7,1.66279]
[1727062238133,3.2078,2684.4,2683.9,3.2078]
[1727062238644,3.2078,2684.4,2683.7,1.2902]
[1727062239031,0.37253,2684.2,2683.6,3.2078]
[1727062239240,1.3345,2684.3,2683.6,3.2078]
[1727062239544,1.3345,2684.3,2683.4,1.3612]
[1727062239836,1.70702,2684.3,2683.4,1.3612]
[1727062240039,1.70702,2684.3,2683.2,5.7178]
[1727062240040,0.37258,2683.8,2683.2,3.2078]
[1727062240236,3.2078,2683.9,2683.2,3.2078]
[1727062241144,3.2078,2683.6,2683.2,3.2078]
[1727062241535,3.7264,2683.5,2683.2,3.2078]
[1727062241940,3.7264,2683.4,2682.8,1.3179]
[1727062242152,3.7264,2683.4,2682.4,3.2078]
[1727062242153,0.37266,2683.3,2682.4,3.2078]
[1727062242339,3.2078,2683.1,2682.2,2.6233]
[1727062242668,3.2078,2682.7,2682.2,2.6233]
[1727062243246,3.2078,2682.7,2681.8,3.2078]
[1727062243548,3.2078,2682.7,2681.8,3.58066]
[1727062243735,3.2078,2682.7,2681.8,3.2078]
[1727062244143,3.2078,2682.4,2681.8,3.2078]
[1727062244342,3.2078,2682.4,2681.5,4.1812]
[1727062244343,3.2078,2682.4,2681.5,1.3612]
[1727062244541,3.2078,2682.4,2681.5,1.7341]
[1727062244743,3.2078,2682.4,2681.5,1.3612]
[1727062245347,3.2078,2682.4,2681.5,1.7341]
[1727062245546,3.2078,2682.4,2681.5,1.3612]
[1727062245745,0.37279,2682.3,2681.5,1.3612]
[1727062245941,4.4777,2682.4,2681.5,1.3612]
[1727062246341,4.85048,2682.4,2681.5,1.3612]
[1727062247041,4.4777,2682.4,2681.5,1.3612]
[1727062247348,3.2078,2682.4,2681.7,3.2078]
[1727062247852,1.3807,2682.6,2681.9,0.37284]
[1727062248049,1.3807,2682.6,2681.8,3.19286]
[1727062248547,1.3807,2682.6,2682.0,3.2078]
[1727062248951,3.2078,2682.7,2681.9,0.37284]
[1727062249155,3.2078,2682.7,2681.8,2.82]
[1727062249752,3.2078,2682.7,2682.1,3.19281]
[1727062249939,3.2078,2682.7,2682.2,1.3004]
[1727062250144,4.5482,2683.1,2682.2,1.6732]
[1727062250345,1.3404,2683.1,2682.4,0.37276]
[1727062250553,4.5548,2683.5,2682.5,6.0278]
[1727062250744,4.5548,2683.5,2682.5,6.40056]
[1727062250945,3.2078,2683.5,2682.8,3.58052]
[1727062251251,1.3404,2684.1,2682.8,3.58052]
[1727062251252,3.2078,2683.9,2683.0,0.37268]
[1727062251639,3.2078,2683.9,2682.9,4.1204]
[1727062251943,3.2078,2683.6,2682.9,4.1204]
[1727062252143,3.2078,2683.6,2682.9,1.3004]
[1727062254145,3.2078,2683.6,2682.7,0.37273]
[1727062254146,3.2078,2683.2,2682.5,6.40056]
[1727062254452,3.2078,2683.2,2682.5,6.0278]
[1727062254647,3.2078,2683.5,2682.9,3.1927]
[1727062254850,3.2078,2683.5,2683.0,1.3989]
[1727062255251,3.2078,2683.5,2683.0,1.77158]
[1727062255551,3.2078,2683.8,2683.3,0.37265]
[1727062255858,3.2078,2683.8,2683.1,0.37268]
[1727062256060,3.2078,2683.8,2683.2,1.2898]
[1727062256354,3.2078,2683.8,2682.3,0.93195]
[1727062256355,3.2078,2683.3,2682.4,1.3668]
[1727062256560,3.2078,2683.3,2682.4,4.5746]
[1727062257251,3.2078,2683.3,2682.4,4.94738]
[1727062257455,3.2078,2683.3,2682.4,4.94737]
[1727062257653,3.2078,2683.3,2682.4,4.5746]
[1727062259254,3.2078,2683.3,2682.7,3.2078]
[1727062259460,3.2078,2683.3,2682.4,4.94737]
[1727062259658,3.2078,2683.3,2682.4,7.3946]
[1727062259861,3.2078,2683.6,2682.5,7.63641929]
[1727062260252,3.2078,2683.6,2682.6,0.37275]
[1727062260660,3.2078,2683.6,2682.5,7.63641929]
[1727062260866,3.2078,2683.6,2683.2,0.37266]
[1727062261160,1.4264,2684.1,2683.3,4.1074]
[1727062261362,3.2078,2683.9,2683.3,2.7397]
[1727062261563,3.2078,2683.6,2682.8,0.37271]
[1727062261760,3.2078,2683.6,2682.9,1.3719]
[1727062262156,3.2078,2683.3,2682.9,1.3719]
[1727062262369,1.4264,2684.1,2682.3,3.2078]
[1727062262370,3.2078,2683.0,2682.3,3.2078]
[1727062262556,3.2078,2682.7,2682.0,3.2078]
[1727062262756,3.2078,2682.3,2681.5,15.01691591]
[1727062262958,3.2078,2682.6,2681.6,0.37288]
[1727062263164,3.2078,2682.6,2681.7,7.68121591]
[1727062263372,3.2078,2682.3,2681.7,7.68121591]
[1727062263569,3.2078,2682.3,2681.5,4.1279]
[1727062263864,3.2078,2682.0,2681.5,2.7602]
[1727062264654,3.2078,2681.7,2681.1,3.2078]
[1727062265270,4.6341,2681.7,2681.1,3.2078]
[1727062265759,5.00698,2681.7,2681.1,3.2078]
[1727062265956,3.2078,2681.3,2680.7,2.6529]
[1727062266560,3.2078,2681.3,2680.7,1.3298]
[1727062266864,3.2078,2681.0,2680.2,1.68968]
[1727062267059,3.2078,2681.0,2680.3,0.37306]
[1727062267267,3.2078,2681.0,2680.2,11.07275959]
[1727062267963,3.2078,2681.0,2680.3,3.2078]
[1727062268159,3.2078,2681.3,2680.5,0.37303]
[1727062268365,3.2078,2681.3,2680.4,10.94880362]
[1727062268563,4.6155,2681.6,2680.4,10.57575362]
[1727062268763,4.6155,2681.6,2680.5,0.37303]
[1727062269167,3.2078,2681.3,2680.4,10.57575362]
[1727062269357,3.2078,2681.0,2680.4,7.75575362]
[1727062270167,3.2078,2681.0,2680.3,3.2078]
[1727062271059,1.4077,2681.6,2680.4,9.01368618]
[1727062271060,3.2078,2681.3,2680.4,9.01368618]
[1727062271370,0.18353348,2681.2,2680.4,7.64538618]
[1727062271673,3.2078,2681.0,2680.3,3.2078]
[1727062271880,3.2078,2681.3,2680.3,3.58086]
[1727062272169,3.2078,2681.0,2680.3,3.2078]
[1727062273457,0.37301,2680.8,2680.3,3.2078]
[1727062273656,3.2078,2680.7,2679.8,1.3683]
[1727062273870,3.2078,2680.4,2679.8,1.3683]
[1727062274163,2.82,2681.0,2679.8,1.3683]
[1727062274164,3.2078,2681.0,2680.1,0.37309]
[1727062274371,3.58077,2681.0,2680.0,0.37311]
[1727062274569,3.2078,2681.0,2680.1,0.3731]
[1727062274772,3.2078,2681.0,2680.1,8.14623401]
[1727062274974,3.2078,2680.7,2679.8,1.3683]
[1727062275171,3.2078,2680.3,2679.8,1.74144]
[1727062275365,3.2078,2680.3,2679.9,7.77314401]
[1727062275869,1.4089,2681.2,2680.6,0.37302]
[1727062276064,3.2078,2681.5,2680.6,0.37301]
[1727062276266,3.2078,2681.5,2680.7,2.6562]
[1727062277069,3.2078,2681.5,2680.7,5.864]
[1727062277272,3.2078,2681.5,2680.7,2.6562]
[1727062277673,3.2078,2681.2,2680.7,2.6562]
[1727062278264,7.31115,2681.2,2680.2,0.37307]
[1727062278476,1.3647,2681.1,2679.9,1.3416]
[1727062278667,1.3647,2681.1,2680.4,0.37305]
[1727062278973,1.3647,2681.1,2680.3,0.37306]
[1727062279176,1.3647,2681.1,2680.1,1.4212]
[1727062279569,1.3647,2681.1,2680.1,9.03137818]
[1727062279761,1.3647,2681.1,2680.2,0.37307]
[1727062279961,3.2078,2680.9,2680.1,9.40446818]
[1727062280166,3.2078,2680.9,2680.3,7.61017818]
[1727062280365,1.3647,2681.1,2680.2,8.03226257]
[1727062280774,1.3647,2681.1,2680.1,1.4212]
[1727062280971,1.3647,2681.1,2680.2,8.40534257]
[1727062281174,1.3647,2681.1,2680.2,8.03226257]
[1727062281368,1.3647,2681.1,2680.2,8.40534257]
[1727062281971,3.2078,2680.9,2680.2,8.03226257]
[1727062282179,3.2078,2680.6,2680.1,1.4212]
[1727062283382,3.2078,2680.6,2679.0,16.511]
[1727062283383,3.2078,2680.3,2679.5,4.5326]
[1727062283671,3.2078,2680.3,2679.5,1.69797]
[1727062283871,3.2078,2680.3,2679.5,1.3248]
[1727062284075,3.2078,2680.3,2679.6,9.16636332]
[1727062284576,3.2078,2680.3,2679.6,9.53952332]
[1727062284766,3.2078,2680.3,2679.6,9.16636332]
[1727062284965,3.2078,2680.3,2679.6,1.4168]
[1727062285168,3.2078,2680.0,2679.6,1.4168]
[1727062285373,3.2078,2680.0,2679.5,1.3248]
[1727062286387,3.2078,2680.3,2679.6,7.718336]
[1727062286573,1.3433,2680.4,2679.7,0.37314]
[1727062286768,1.3433,2680.4,2679.6,10.926136]
[1727062286769,3.2078,2680.3,2679.6,10.926136]
[1727062287474,3.2078,2680.3,2679.6,11.299296]
[1727062287682,3.2078,2680.3,2679.6,10.926136]
[1727062287878,3.2078,2680.3,2679.6,8.091496]
[1727062288080,4.92416,2680.4,2679.5,1.3248]
[1727062288280,3.2078,2680.1,2679.5,1.3248]
[1727062288477,3.2078,2680.9,2679.8,3.2078]
[1727062288785,3.2078,2680.6,2680.1,0.37309]
[1727062288985,3.2078,2680.6,2679.9,10.28291188]
[1727062289178,3.58082,2680.7,2679.9,2.4511]
[1727062289379,3.2078,2680.8,2679.9,2.4511]
[1727062289583,3.2078,2680.5,2679.9,2.4511]
[1727062289775,3.2078,2680.5,2679.9,1.2124]
[1727062289989,3.2078,2680.5,2679.6,1.2124]
[1727062289990,1.149,2680.4,2679.6,1.2124]
[1727062290381,1.149,2680.4,2679.6,9.64280754]
[1727062290587,1.149,2680.4,2679.5,4.5326]
[1727062290588,3.2078,2679.9,2679.5,4.5326]
[1727062290978,3.2078,2680.3,2679.6,7.8555659]
[1727062291185,3.58079,2680.9,2679.9,0.37312]
[1727062291379,3.2078,2680.6,2679.9,0.37312]
[1727062291684,3.2078,2680.6,2680.0,7.90739016]
[1727062292177,3.2078,2680.3,2679.7,7.90739016]
[1727062292487,3.2078,2680.3,2679.7,1.1307]
[1727062292791,7.31207,2680.3,2679.5,4.5326]
[1727062292991,1.1156,2680.2,2679.5,4.5326]
[1727062293301,3.2078,2680.0,2679.5,4.5326]
[1727062293485,3.2078,2679.6,2679.0,0.37325]
[1727062293692,3.2078,2679.6,2679.0,1.1768]
[1727062293983,3.2078,2679.6,2679.0,8.83464339]
[1727062294589,1.1156,2680.3,2679.0,8.1166]
[1727062294793,1.1156,2680.3,2679.1,7.79741436]
[1727062294996,3.2078,2680.4,2679.3,2.82]
[1727062295284,0.973121,2681.3,2679.3,2.82]
[1727062295285,1.1288,2681.3,2680.5,0.37303]
[1727062295482,1.1288,2681.3,2680.6,3.5363]
[1727062295683,1.1288,2681.3,2680.6,11.34711272]
[1727062295985,1.1288,2681.3,2680.7,0.373]
[1727062296190,3.2078,2682.0,2681.2,3.2078]
[1727062296796,3.2078,2682.0,2680.9,3.2078]
[1727062297180,3.2078,2682.0,2681.0,8.1120574]
[1727062297585,3.2078,2682.0,2681.0,7.7390974]
[1727062297891,3.2078,2681.7,2680.6,6.7441]
[1727062298290,3.2078,2681.7,2680.7,8.0285257]
[1727062298591,1.1896,2681.6,2680.7,8.0285257]
[1727062298792,3.2078,2681.7,2680.7,8.0285257]
[1727062298988,1.1881,2682.4,2681.1,3.2078]
[1727062298989,3.2078,2682.1,2681.1,3.2078]
[1727062299398,3.2078,2682.1,2681.4,3.2078]
[1727062299690,3.2078,2682.1,2681.5,2.329]
[1727062300683,3.2078,2682.1,2681.5,2.7019]
[1727062300885,3.2078,2682.5,2681.9,0.37283]
[1727062301093,3.2078,2682.5,2681.7,3.2078]
[1727062301389,1.37325584,2683.1,2681.6,8.86580135]
[1727062301390,4.3987,2683.1,2682.2,3.2078]
[1727062301590,3.2078,2683.4,2682.3,2.75778]
[1727062301803,3.2078,2683.1,2682.3,10.01169168]
[1727062302097,3.58048,2683.1,2682.3,10.01169168]
[1727062302393,3.2078,2682.8,2681.9,3.2078]
[1727062302590,3.2078,2682.8,2681.7,2.385]
[1727062302812,3.2078,2682.5,2681.7,2.385]
[1727062303095,3.2078,2682.5,2681.7,10.33504781]
[1727062303489,3.58057,2682.5,2681.7,10.33504781]
[1727062303697,3.2078,2682.2,2681.7,10.33504781]
[1727062303993,6.0278,2682.5,2681.7,10.33504781]
[1727062304292,6.40057,2682.5,2681.7,10.33504781]
[1727062304497,6.0278,2682.5,2681.7,10.33504781]
[1727062305301,6.40057,2682.5,2681.7,10.33504781]
[1727062305801,3.2078,2682.1,2681.4,3.58071]
[1727062305994,6.0278,2682.1,2681.4,3.2078]
[1727062306186,6.0278,2682.1,2681.1,3.2078]
[1727062306187,3.2078,2681.8,2681.1,3.2078]
[1727062307400,3.58067,2681.8,2681.1,3.2078]
[1727062307592,3.2078,2681.8,2681.1,3.2078]
[1727062307996,3.2078,2681.8,2681.1,3.58076]
[1727062308188,3.2078,2681.8,2681.1,3.2078]
[1727062308698,3.2078,2681.8,2681.1,3.58076]
[1727062308892,3.2078,2681.8,2681.1,3.2078]
[1727062310693,3.2078,2681.8,2681.1,3.58075]
[1727062310893,3.2078,2681.8,2681.1,3.2078]
[1727062311094,3.2078,2681.8,2680.4,15.80795]
[1727062311095,3.2078,2681.3,2680.4,15.80795]
[1727062311399,3.2078,2681.0,2680.4,15.80795]
[1727062312491,3.350721,2681.2,2680.4,15.80795]
[1727062312492,3.2078,2680.7,2680.4,15.80795]
[1727062314609,3.7304,2680.6,2680.4,15.80795]
[1727062314803,4.9,2680.6,2680.4,15.80795]
[1727062315104,3.7304,2680.5,2680.4,15.80795]
[1727062315309,3.7304,2680.5,2680.4,10.12225]
[1727062315310,4.10344,2680.5,2680.4,10.12225]
[1727062315607,9.7304,2680.5,2680.4,10.12225]
[1727062315902,3.7304,2680.5,2680.4,10.12225]
[1727062316095,9.7304,2680.5,2680.4,10.12225]
[1727062316707,10.10344,2680.5,2680.4,10.12225]
[1727062317003,9.7304,2680.5,2680.4,10.12225]
[1727062317403,3.7304,2680.5,2680.4,10.12225]
[1727062318003,9.7304,2680.5,2680.4,10.12225]
[1727062318593,4.36263,2680.6,2680.4,10.12225]
[1727062318594,3.9896,2680.6,2680.4,10.12225]
[1727062318801,3.7304,2680.5,2680.4,10.12225]
[1727062319404,3.2078,2680.7,2680.4,10.12225]
[1727062319605,6.0278,2681.0,2680.4,10.12225]
[1727062319797,3.2078,2680.7,2680.4,10.12225]
[1727062320299,2.82,2681.0,2680.4,10.12225]
[1727062320300,3.5808,2680.8,2680.4,10.12225]
[1727062320697,3.2078,2680.8,2680.4,10.12225]
[1727062321200,3.2078,2680.5,2680.4,10.12225]
[1727062321606,9.7304,2680.5,2680.4,10.12225]
[1727062321806,12.9382,2680.5,2680.4,10.12225]
[1727062322012,10.10344,2680.5,2680.4,10.12225]
[1727062322200,13.31124,2680.5,2680.4,10.12225]
[1727062322795,13.31124,2680.5,2679.0,0.37325]
[1727062322796,0.37312,2679.9,2679.0,0.37325]
[1727062322999,0.37312,2679.9,2678.4,3.2078]
[1727062323000,3.19313,2679.9,2679.1,3.4379]
[1727062323204,0.37315,2679.8,2679.1,3.4379]
[1727062323596,3.2078,2679.6,2679.1,3.4379]